bitfinex/quotes_SOLUSD_20241101
["timestamp","ask_amount","ask_price","bid_price","bid_amount"]
[1730451503576,4.49680725,165.78,165.7,21.1225]
[1730451503894,4.49680725,165.77,165.7,21.1225]
[1730451504096,4.49680725,165.76,165.7,21.1225]
[1730451504389,4.49680725,165.75,165.7,21.1225]
[1730451504596,4.49680725,165.74,165.7,21.1225]
[1730451504895,4.49680725,165.73,165.7,21.1225]
[1730451505088,4.49680725,165.72,165.7,21.1225]
[1730451505298,20.0,165.81,165.7,21.1225]
[1730451505475,4.49788643,165.8,165.7,21.1225]
[1730451505681,4.49788643,165.79,165.7,21.1225]
[1730451505885,4.49788643,165.78,165.7,21.1225]
[1730451506190,4.49788643,165.77,165.7,21.1225]
[1730451506491,4.49788643,165.76,165.7,21.1225]
[1730451506706,4.49788643,165.75,165.7,21.1225]
[1730451506994,4.49769754,165.74,165.7,21.1225]
[1730451507194,4.49769754,165.73,165.7,21.1225]
[1730451507394,4.49769754,165.72,165.7,21.1225]
[1730451507597,6.0313,165.8,165.7,21.1225]
[1730451507789,4.49740647,165.79,165.7,21.1225]
[1730451508097,4.49740647,165.78,165.7,21.1225]
[1730451508299,4.49740647,165.77,165.7,21.1225]
[1730451508602,4.49740647,165.76,165.7,21.1225]
[1730451508901,4.49740647,165.75,165.7,21.1225]
[1730451509199,4.49740647,165.74,165.7,21.1225]
[1730451509371,4.49740647,165.73,165.7,21.1225]
[1730451509579,4.49740647,165.72,165.7,21.1225]
[1730451509787,6.0322,165.78,165.7,21.1225]
[1730451510003,4.49734408,165.77,165.71,0.12549]
[1730451510295,4.49734408,165.76,165.72,21.1198]
[1730451510492,4.49734408,165.75,165.72,21.1198]
[1730451510689,4.49734408,165.74,165.72,21.1198]
[1730451511008,4.49732084,165.73,165.72,21.1198]
[1730451512000,4.49732084,165.73,165.72,21.24529]
[1730451512188,4.49732084,165.73,165.72,45.273154]
[1730451512384,6.0306,165.83,165.73,44.153354]
[1730451512691,4.49785296,165.82,165.73,44.153354]
[1730451512893,4.49785296,165.81,165.73,44.153354]
[1730451513198,4.49803372,165.8,165.73,44.153354]
[1730451513406,4.49803372,165.79,165.73,44.153354]
[1730451513702,4.49803372,165.78,165.75,0.12549]
[1730451513878,4.49803372,165.77,165.75,0.12549]
[1730451514077,6.0306,165.83,165.75,0.12549]
[1730451514279,4.49603954,165.82,165.75,0.12549]
[1730451514479,4.49603954,165.81,165.75,0.12549]
[1730451514691,6.0306,165.83,165.74,21.1173]
[1730451514692,4.49603954,165.8,165.76,15.082]
[1730451514890,4.49603954,165.79,165.76,15.082]
[1730451515079,4.49603954,165.78,165.76,15.082]
[1730451515390,6.0306,165.83,165.76,15.082]
[1730451515391,15.6437,165.88,165.76,15.082]
[1730451515696,54.42328402,165.87,165.76,15.082]
[1730451516002,4.49211002,165.86,165.78,16.5327]
[1730451516177,4.49211002,165.85,165.78,16.5327]
[1730451516372,4.49211002,165.84,165.78,16.5327]
[1730451516677,4.49211002,165.83,165.8,12.473]
[1730451516874,6.0291,165.87,165.8,12.473]
[1730451516875,4.49211002,165.82,165.8,12.473]
[1730451517083,4.49211002,165.81,165.8,12.473]
[1730451517496,6.15279,165.91,165.8,12.473]
[1730451517676,6.15279,165.91,165.8,6.0312]
[1730451517677,0.12549,165.89,165.8,6.0312]
[1730451517882,24.48834669,165.88,165.8,6.0312]
[1730451518083,4.48834669,165.87,165.8,6.0312]
[1730451518288,4.48834669,165.86,165.8,6.0312]
[1730451518495,4.48834669,165.85,165.79,15.0791]
[1730451518694,4.48834669,165.84,165.79,21.1108]
[1730451518895,4.48834669,165.83,165.79,15.0791]
[1730451519082,4.48834669,165.82,165.79,15.0791]
[1730451519282,6.0295,165.85,165.79,15.0791]
[1730451519488,4.48540237,165.84,165.79,15.0791]
[1730451519675,4.48540237,165.83,165.79,15.0791]
[1730451519880,4.48540237,165.82,165.79,15.0791]
[1730451520101,6.0295,165.85,165.79,21.1108]
[1730451520306,4.48545667,165.84,165.79,21.1108]
[1730451520606,4.48545667,165.83,165.79,21.1108]
[1730451520811,6.0295,165.85,165.79,21.1108]
[1730451520998,4.48443406,165.84,165.79,21.1108]
[1730451521302,36.1099,165.88,165.79,21.1108]
[1730451521502,20.0,165.86,165.79,21.1108]
[1730451521708,4.48330178,165.85,165.79,21.1108]
[1730451521890,4.48330178,165.84,165.79,21.1108]
[1730451522086,4.48330178,165.83,165.79,21.1108]
[1730451522294,4.48330178,165.82,165.79,21.1108]
[1730451522511,6.0296,165.85,165.79,21.1108]
[1730451522807,4.48220083,165.84,165.79,21.1108]
[1730451522986,4.48220083,165.83,165.79,21.1108]
[1730451523186,4.48220083,165.82,165.79,21.1108]
[1730451523393,20.0,165.87,165.79,21.1108]
[1730451523600,10.51044097,165.86,165.79,21.1108]
[1730451523910,4.48134097,165.85,165.79,21.1108]
[1730451524091,4.48134097,165.84,165.79,21.1108]
[1730451524295,4.48134097,165.83,165.79,21.1108]
[1730451524498,4.48134097,165.82,165.79,21.1108]
[1730451524813,6.0298,165.85,165.79,21.1108]
[1730451525111,4.48054647,165.84,165.79,21.1108]
[1730451525297,4.48054647,165.83,165.79,21.1108]
[1730451525501,6.0291,165.86,165.79,21.1108]
[1730451525703,4.47983009,165.85,165.79,21.1108]
[1730451525881,4.47983009,165.84,165.79,21.1108]
[1730451526085,6.0291,165.86,165.79,21.1108]
[1730451526086,4.47983009,165.83,165.79,21.1108]
[1730451526301,6.0291,165.86,165.79,21.1108]
[1730451526492,10.50919831,165.85,165.79,21.1108]
[1730451526693,4.47949831,165.84,165.79,21.1108]
[1730451528601,4.47835368,165.83,165.79,21.1108]
[1730451528915,6.0291,165.86,165.79,21.1108]
[1730451529117,4.47836112,165.85,165.79,21.1108]
[1730451529310,4.47836112,165.84,165.79,21.1108]
[1730451529616,6.0291,165.86,165.79,21.1108]
[1730451529617,4.47836112,165.83,165.79,21.1108]
[1730451529915,6.0291,165.86,165.79,21.1108]
[1730451530117,6.0299,165.84,165.79,21.1108]
[1730451530422,4.4778335,165.83,165.79,21.1108]
[1730451530713,6.0299,165.84,165.79,21.1108]
[1730451530929,4.47734399,165.83,165.79,21.1108]
[1730451531088,6.0299,165.84,165.79,21.1108]
[1730451531289,4.47737134,165.83,165.79,21.1108]
[1730451531508,6.0291,165.86,165.76,6.3354]
[1730451531693,24.47702835,165.85,165.76,27.4501]
[1730451531897,4.47702835,165.84,165.76,27.4501]
[1730451532094,20.0,165.85,165.76,27.4501]
[1730451532095,4.47702835,165.83,165.76,27.4501]
[1730451532294,4.47635716,165.82,165.76,21.1147]
[1730451532806,4.47635649,165.81,165.76,15.082]
[1730451533017,6.0299,165.84,165.76,15.082]
[1730451533311,4.47632208,165.83,165.76,15.082]
[1730451533512,4.47632208,165.82,165.76,15.082]
[1730451533716,4.47632208,165.81,165.76,15.082]
[1730451534101,4.47632208,165.81,165.74,21.8868]
[1730451535313,10.50762208,165.8,165.74,21.8868]
[1730451535516,4.47603917,165.79,165.74,21.8868]
[1730451535697,6.0313,165.8,165.74,21.8868]
[1730451535894,4.47598924,165.79,165.74,21.8868]
[1730451536119,6.0313,165.8,165.74,21.8868]
[1730451536302,4.47591073,165.79,165.74,21.8868]
[1730451536504,43.902374,165.85,165.74,21.8868]
[1730451536703,23.776884,165.83,165.74,36.9706]
[1730451536921,4.47628294,165.82,165.74,36.9706]
[1730451537300,4.47628294,165.81,165.74,36.9706]
[1730451537627,4.47628294,165.8,165.74,36.9706]
[1730451537812,4.47628294,165.79,165.74,36.9706]
[1730451538011,6.0312,165.81,165.74,36.9706]
[1730451538213,4.47738649,165.8,165.74,36.9706]
[1730451538413,6.0299,165.84,165.74,36.9706]
[1730451538611,4.47835489,165.83,165.74,36.9706]
[1730451538809,4.47835489,165.82,165.74,36.9706]
[1730451539006,4.47835489,165.81,165.74,36.9706]
[1730451539314,4.47835489,165.8,165.74,36.9706]
[1730451539522,6.0304,165.83,165.74,36.9706]
[1730451539711,4.47902128,165.82,165.74,36.9706]
[1730451540023,6.0304,165.83,165.74,36.9706]
[1730451540024,4.47902128,165.81,165.74,36.9706]
[1730451540400,4.47902128,165.8,165.74,36.9706]
[1730451540606,6.0308,165.82,165.74,36.9706]
[1730451540809,4.47991191,165.81,165.74,36.9706]
[1730451541011,4.47991191,165.8,165.74,36.9706]
[1730451541205,6.0308,165.82,165.74,36.9706]
[1730451541401,4.48002453,165.81,165.74,36.9706]
[1730451541716,4.48002453,165.8,165.74,36.9706]
[1730451542107,6.0306,165.82,165.74,36.9706]
[1730451542430,4.48059781,165.81,165.74,36.9706]
[1730451542600,6.0306,165.82,165.74,36.9706]
[1730451542926,4.48093241,165.81,165.74,36.9706]
[1730451543132,6.15459,165.86,165.74,36.9706]
[1730451543431,24.60709287,165.85,165.74,36.9706]
[1730451543611,4.48160287,165.84,165.74,36.9706]
[1730451543814,4.48160287,165.83,165.74,36.9706]
[1730451544011,4.48160287,165.82,165.74,36.9706]
[1730451544215,4.48160287,165.81,165.74,36.9706]
[1730451544422,4.48160287,165.8,165.74,36.9706]
[1730451544630,6.0305,165.83,165.74,36.9706]
[1730451544935,4.48313369,165.82,165.74,36.9706]
[1730451545228,4.48313369,165.81,165.74,36.9706]
[1730451545426,4.48313369,165.8,165.74,36.9706]
[1730451545616,4.48313369,165.79,165.74,36.9706]
[1730451545819,6.0299,165.84,165.74,36.9706]
[1730451546008,4.48379548,165.83,165.74,36.9706]
[1730451546208,4.48379548,165.82,165.74,36.9706]
[1730451546421,4.48432413,165.81,165.74,36.9706]
[1730451546624,4.48432413,165.8,165.74,36.9706]
[1730451546810,4.48432413,165.79,165.74,36.9706]
[1730451547013,6.0308,165.82,165.74,36.9706]
[1730451547225,4.48424896,165.81,165.74,36.9706]
[1730451547435,4.48424896,165.8,165.74,36.9706]
[1730451547606,4.48424896,165.79,165.74,36.9706]
[1730451547922,4.48424896,165.78,165.74,36.9706]
[1730451548139,6.0314,165.8,165.74,36.9706]
[1730451548429,4.48513755,165.79,165.74,36.9706]
[1730451548614,4.48513755,165.78,165.74,36.9706]
[1730451548926,6.0314,165.8,165.74,36.9706]
[1730451549103,4.48497268,165.79,165.74,36.9706]
[1730451549307,4.48497268,165.78,165.74,36.9706]
[1730451549507,23.902374,165.83,165.74,36.9706]
[1730451549709,24.48534808,165.82,165.74,36.9706]
[1730451549925,4.48534808,165.81,165.74,36.9706]
[1730451550215,4.48534808,165.8,165.74,36.9706]
[1730451550414,6.0311,165.81,165.74,36.9706]
[1730451550415,4.4860487,165.79,165.74,36.9706]
[1730451550713,4.4860487,165.78,165.74,36.9706]
[1730451550903,6.0311,165.81,165.74,36.9706]
[1730451551107,4.48600673,165.8,165.74,36.9706]
[1730451551314,4.48600673,165.79,165.74,36.9706]
[1730451551515,4.48600673,165.78,165.74,36.9706]
[1730451551837,6.0306,165.82,165.74,36.9706]
[1730451552038,4.48696208,165.81,165.74,36.9706]
[1730451552330,4.48696208,165.8,165.74,36.9706]
[1730451552511,4.48696208,165.79,165.74,36.9706]
[1730451552715,4.48696208,165.78,165.74,36.9706]
[1730451552914,4.48696208,165.77,165.74,36.9706]
[1730451553132,6.031,165.81,165.74,36.9706]
[1730451553324,4.48858787,165.8,165.74,36.9706]
[1730451553523,4.48858787,165.79,165.74,36.9706]
[1730451553827,4.48858787,165.78,165.74,36.9706]
[1730451554032,4.48858787,165.77,165.74,36.9706]
[1730451554331,6.0306,165.82,165.74,36.9706]
[1730451554516,4.48955053,165.81,165.74,36.9706]
[1730451554719,6.0306,165.82,165.74,36.9706]
[1730451554924,4.48952262,165.81,165.74,36.9706]
[1730451555111,4.48952262,165.8,165.74,36.9706]
[1730451555436,4.48952262,165.79,165.74,15.0838]
[1730451555610,4.48952262,165.78,165.74,15.0838]
[1730451555810,4.48952262,165.77,165.74,15.0838]
[1730451556034,4.48952262,165.76,165.74,15.0838]
[1730451556331,6.0315,165.8,165.74,15.0838]
[1730451556520,15.249,165.82,165.74,15.0838]
[1730451556521,4.49136731,165.79,165.74,15.0838]
[1730451556720,4.49136508,165.78,165.74,15.0838]
[1730451556921,4.49136508,165.77,165.74,15.0838]
[1730451557231,4.49272509,165.76,165.74,15.0838]
[1730451557418,20.0,165.84,165.74,15.0838]
[1730451557733,4.49274549,165.83,165.74,15.0838]
[1730451557920,4.49274549,165.82,165.74,15.0838]
[1730451558125,4.49274549,165.81,165.74,15.0838]
[1730451558322,6.0302,165.84,165.74,15.0838]
[1730451558516,4.49339885,165.8,165.74,15.0838]
[1730451558717,4.49339885,165.79,165.74,15.0838]
[1730451558910,4.49339885,165.78,165.74,15.0838]
[1730451559111,4.49339885,165.77,165.74,15.0838]
[1730451559317,4.49339885,165.76,165.74,15.0838]
[1730451559514,20.0,165.84,165.74,15.0838]
[1730451559735,4.49364846,165.83,165.74,15.0838]
[1730451560045,20.0,165.84,165.74,15.0838]
[1730451560046,4.49364846,165.82,165.74,15.0838]
[1730451560214,4.49364846,165.81,165.74,15.0838]
[1730451560414,4.49364846,165.8,165.74,15.0838]
[1730451560629,4.49364846,165.79,165.74,15.0838]
[1730451560948,4.49364846,165.78,165.74,15.0838]
[1730451561138,4.49364846,165.77,165.74,15.0838]
[1730451561339,4.49364846,165.76,165.74,15.0838]
[1730451561528,20.0,165.85,165.75,15.7005]
[1730451561729,10.52347994,165.84,165.75,15.7005]
[1730451561924,4.49357994,165.83,165.75,15.7005]
[1730451562117,4.49357994,165.82,165.75,15.7005]
[1730451562320,4.49357994,165.81,165.75,15.7005]
[1730451562635,4.49357994,165.8,165.75,15.7005]
[1730451562810,4.49357994,165.79,165.75,15.7005]
[1730451563017,4.49357994,165.78,165.76,21.24029]
[1730451563238,6.0292,165.86,165.76,51.40429]
[1730451563539,4.49404687,165.85,165.76,51.40429]
[1730451563722,4.49404687,165.84,165.76,51.40429]
[1730451563925,4.49404687,165.83,165.76,51.40429]
[1730451564124,4.49404687,165.82,165.76,51.40429]
[1730451564319,4.49404687,165.81,165.76,51.40429]
[1730451564515,4.49404687,165.8,165.76,51.40429]
[1730451564743,7.61570298,165.88,165.78,21.23769]
[1730451564744,4.49465863,165.79,165.78,21.23769]
[1730451564920,13.64440298,165.88,165.78,95.425954]
[1730451564921,6.0287,165.88,165.78,95.425954]
[1730451565124,4.4947563,165.87,165.78,95.425954]
[1730451565534,4.4947563,165.86,165.78,95.425954]
[1730451565742,6.0287,165.88,165.78,95.425954]
[1730451565743,15.539,165.9,165.78,95.425954]
[1730451566034,10.5227296,165.89,165.78,95.425954]
[1730451566244,6.028,165.89,165.78,95.425954]
[1730451566424,4.49474256,165.88,165.78,95.425954]
[1730451566625,4.49474256,165.87,165.78,95.425954]
[1730451566832,4.49474256,165.86,165.78,95.425954]
[1730451567142,4.49474256,165.85,165.78,95.425954]
[1730451567346,4.49474256,165.84,165.78,95.425954]
[1730451567530,4.49474256,165.83,165.78,95.425954]
[1730451567734,4.49474256,165.82,165.78,95.425954]
[1730451567932,4.49474256,165.81,165.78,95.425954]
[1730451568239,4.49474256,165.8,165.78,95.425954]
[1730451568455,6.0286,165.88,165.78,95.425954]
[1730451568746,4.49455149,165.87,165.78,95.425954]
[1730451568946,4.49455149,165.86,165.78,95.425954]
[1730451569148,4.49455149,165.85,165.78,95.425954]
[1730451569325,4.49455149,165.84,165.78,95.425954]
[1730451569525,4.49455149,165.83,165.78,95.425954]
[1730451569725,4.49455149,165.82,165.78,95.425954]
[1730451570036,4.49455149,165.81,165.78,95.425954]
[1730451570238,6.0287,165.88,165.78,95.425954]
[1730451570448,4.49398601,165.87,165.78,95.425954]
[1730451570626,4.49398601,165.86,165.78,95.425954]
[1730451570941,4.49398601,165.85,165.78,95.425954]
[1730451571239,4.49398601,165.84,165.78,95.425954]
[1730451571448,4.49398601,165.83,165.78,95.425954]
[1730451571631,4.49398601,165.82,165.78,95.425954]
[1730451571832,4.49398601,165.81,165.78,95.425954]
[1730451572030,6.0287,165.88,165.78,95.425954]
[1730451572233,4.49385399,165.87,165.78,95.425954]
[1730451572435,4.49385399,165.86,165.78,95.425954]
[1730451572642,4.49385399,165.85,165.78,95.425954]
[1730451572843,4.49385399,165.84,165.78,95.425954]
[1730451573042,4.49385399,165.83,165.78,95.425954]
[1730451573231,4.49385399,165.82,165.78,95.425954]
[1730451573432,6.0284,165.88,165.78,95.425954]
[1730451573634,4.49331124,165.87,165.78,95.425954]
[1730451573824,4.49331124,165.86,165.78,95.425954]
[1730451574029,4.49331124,165.85,165.78,95.425954]
[1730451574227,4.49331124,165.84,165.78,95.425954]
[1730451574455,4.49331124,165.83,165.78,95.425954]
[1730451574657,4.49331124,165.82,165.78,95.425954]
[1730451574863,4.49331124,165.81,165.78,95.425954]
[1730451575152,6.0288,165.87,165.78,95.425954]
[1730451575352,4.49285512,165.86,165.78,95.425954]
[1730451575654,4.49285512,165.85,165.78,95.425954]
[1730451575843,4.49285512,165.84,165.78,95.425954]
[1730451576043,4.49285512,165.83,165.78,95.425954]
[1730451576350,4.49285512,165.82,165.78,95.425954]
[1730451576647,4.49285512,165.81,165.78,95.425954]
[1730451576844,6.0284,165.88,165.78,95.425954]
[1730451577156,4.49269576,165.87,165.78,95.425954]
[1730451577351,6.0284,165.88,165.78,95.425954]
[1730451577654,4.49247311,165.87,165.78,95.425954]
[1730451577854,4.49248752,165.86,165.78,95.425954]
[1730451578155,4.49248752,165.86,165.78,71.2726]
[1730451578156,4.49248752,165.85,165.78,71.2726]
[1730451578342,4.49248752,165.84,165.78,71.2726]
[1730451578539,4.49248752,165.83,165.78,71.2726]
[1730451578743,4.49248752,165.82,165.78,71.2726]
[1730451579058,4.49248752,165.81,165.78,51.2726]
[1730451579228,4.49248752,165.8,165.78,51.2726]
[1730451579430,4.49248752,165.79,165.78,51.2726]
[1730451580257,4.49248752,165.79,165.78,21.1122]
[1730451581237,4.49153138,165.79,165.78,15.0802]
[1730451585058,4.49252496,165.79,165.78,15.0802]
[1730451588061,23.776884,165.89,165.78,47.42329]
[1730451588259,4.49353862,165.88,165.78,47.42329]
[1730451588461,15.539,165.9,165.79,0.12549]
[1730451588643,4.49353104,165.89,165.79,0.12549]
[1730451588958,4.49353104,165.88,165.79,0.12549]
[1730451589158,4.49353104,165.87,165.8,21.1097]
[1730451589363,4.49353104,165.86,165.8,21.1097]
[1730451589538,4.49353104,165.85,165.8,21.1097]
[1730451589737,4.49353104,165.84,165.8,21.1097]
[1730451589941,4.49353104,165.83,165.8,21.1097]
[1730451590243,4.49353104,165.82,165.8,15.0784]
[1730451590460,4.49273312,165.81,165.8,15.0784]
[1730451591243,6.0284,165.88,165.8,15.0784]
[1730451591457,4.49253386,165.87,165.8,15.0784]
[1730451591758,4.49253386,165.86,165.8,15.0784]
[1730451591959,4.49253386,165.85,165.8,15.0784]
[1730451592148,4.49252569,165.84,165.8,15.0784]
[1730451592350,4.49252569,165.83,165.8,15.0784]
[1730451592670,4.49252569,165.82,165.8,15.0784]
[1730451592846,6.0292,165.86,165.8,15.0784]
[1730451593052,4.49228463,165.85,165.8,15.0784]
[1730451593362,4.49228463,165.84,165.8,15.0784]
[1730451593660,4.49228463,165.83,165.8,15.0784]
[1730451593863,4.49228463,165.82,165.8,15.0784]
[1730451594044,6.0284,165.88,165.8,15.0784]
[1730451594245,4.4921555,165.87,165.8,15.0784]
[1730451594568,4.4921555,165.86,165.8,15.0784]
[1730451594749,4.4921555,165.85,165.8,15.0784]
[1730451594950,4.4921555,165.84,165.8,15.0784]
[1730451595166,4.4921555,165.83,165.8,15.0784]
[1730451595465,4.4921555,165.82,165.8,15.0784]
[1730451595642,6.0286,165.88,165.8,15.0784]
[1730451595841,4.49221701,165.81,165.8,15.20389]
[1730451596766,4.49221701,165.81,165.8,21.23519]
[1730451597260,4.49248491,165.81,165.8,21.1097]
[1730451598363,6.0284,165.88,165.8,15.0784]
[1730451598564,4.49284437,165.87,165.8,15.0784]
[1730451598745,4.49284437,165.86,165.8,15.0784]
[1730451598943,4.49284437,165.85,165.8,15.0784]
[1730451599143,4.49284437,165.84,165.8,15.0784]
[1730451599460,4.49303369,165.83,165.8,15.0784]
[1730451599661,4.49303369,165.82,165.8,15.0784]
[1730451599968,4.49303369,165.81,165.8,15.0784]
[1730451603571,6.0284,165.88,165.8,15.0784]
[1730451605353,6.0284,165.88,165.82,21.1071]
[1730451605984,15.539,165.9,165.83,0.12549]
[1730451605985,21.5669,165.9,165.83,0.12549]
[1730451606168,21.5669,165.9,165.82,21.1071]
[1730451606860,21.5669,165.9,165.82,15.0765]
[1730451607966,20.0,165.92,165.82,15.0765]
[1730451609173,6.0266,165.93,165.83,0.25098]
[1730451609353,6.0266,165.93,165.83,44.027864]
[1730451609868,6.0263,165.94,165.85,16.69898]
[1730451610768,20.0,165.96,165.86,21.102]
[1730451613356,6.0259,165.95,165.86,21.102]
[1730451617369,6.0251,165.97,165.87,0.25098]
[1730451617855,7.1241,166.0,165.9,0.25098]
[1730451619082,7.1241,166.0,165.91,21.0957]
[1730451619475,7.1241,166.0,165.92,20.0]
[1730451619769,7.1241,166.0,165.91,21.0957]
[1730451620166,7.1241,166.0,165.91,15.0684]
[1730451620557,20.0,165.98,165.88,15.0711]
[1730451620877,20.0,165.98,165.88,21.0995]
[1730451621773,6.0251,165.97,165.88,15.0711]
[1730451627276,6.0248,165.98,165.88,15.0711]
[1730451628463,23.902374,165.99,165.88,15.0711]
[1730451628760,29.926874,165.99,165.88,15.0711]
[1730451630379,17.28110439,166.02,165.86,36.175]
[1730451630380,6.024,166.01,165.9,21.097]
[1730451630582,6.024,166.01,165.9,51.2356]
[1730451631362,13.25509094,166.01,165.9,30.1386]
[1730451631888,24.027864,166.0,165.9,30.1386]
[1730451632467,6.0244,165.99,165.9,30.1386]
[1730451636204,6.0244,165.99,165.87,20.12549]
[1730451637064,6.0244,165.99,165.87,0.25098]
[1730451637576,6.0244,165.99,165.88,21.0995]
[1730451649001,23.902374,165.98,165.88,21.0995]
[1730451650092,6.0251,165.97,165.88,21.0995]
[1730451651099,23.902374,166.0,165.88,21.0995]
[1730451651284,6.0237,166.01,165.9,16.1363]
[1730451652220,10.27887172,166.0,165.94,10.27887172]
[1730451652390,6.0244,165.99,165.94,10.27887172]
[1730451653088,6.0244,165.99,165.95,10.27887172]
[1730451653497,6.0244,165.99,165.94,10.27887172]
[1730451655409,10.27887172,165.98,165.92,25.34617172]
[1730451655578,10.27887172,165.97,165.91,10.27887172]
[1730451657376,6.0255,165.96,165.91,10.27887172]
[1730451657585,16.30437172,165.96,165.91,10.27887172]
[1730451658099,16.30437172,165.96,165.9,16.30657172]
[1730451658604,10.27887172,165.95,165.9,10.27887172]
[1730451660118,16.30437172,165.96,165.9,10.27887172]
[1730451660292,16.30437172,165.96,165.91,10.27887172]
[1730451660498,6.0255,165.96,165.91,10.27887172]
[1730451661193,6.0255,165.96,165.92,10.27887172]
[1730451661501,6.0255,165.96,165.94,10.27887172]
[1730451662014,6.0255,165.96,165.93,10.27887172]
[1730451662809,23.902374,165.98,165.93,10.27887172]
[1730451663106,34.18124572,165.98,165.93,10.27887172]
[1730451663293,4.49415935,165.97,165.93,10.27887172]
[1730451663496,4.49415935,165.96,165.93,10.27887172]
[1730451663688,4.49415935,165.95,165.93,10.27887172]
[1730451663885,4.49415935,165.94,165.93,10.27887172]
[1730451665207,4.49415935,165.94,165.92,10.27887172]
[1730451665390,4.49415935,165.93,165.92,10.27887172]
[1730451665796,4.49415935,165.93,165.91,10.27887172]
[1730451666007,4.49415935,165.92,165.91,10.27887172]
[1730451666806,0.1,165.89,165.86,6.27171862]
[1730451667010,0.25098,165.85,165.74,22.7937]
[1730451667304,10.27887172,165.75,165.7,28.8286]
[1730451668511,16.10610883,165.75,165.7,28.8286]
[1730451669095,16.10610883,165.76,165.7,28.8286]
[1730451669295,16.10610883,165.75,165.7,28.8286]
[1730451669992,16.10610883,165.74,165.7,28.8286]
[1730451670198,16.10610883,165.75,165.7,28.8286]
[1730451671809,16.10610883,165.74,165.7,28.8286]
[1730451672191,6.0306,165.82,165.69,31.19370883]
[1730451672192,16.10610883,165.75,165.69,31.19370883]
[1730451672396,16.10610883,165.73,165.69,21.1229]
[1730451672606,16.10610883,165.72,165.68,0.6115367]
[1730451672919,16.10610883,165.71,165.68,0.6115367]
[1730451675087,16.10610883,165.73,165.68,0.6115367]
[1730451675416,16.10610883,165.74,165.68,37.84234553]
[1730451675594,16.10610883,165.73,165.68,21.7362367]
[1730451675920,16.10610883,165.73,165.68,15.7008367]
[1730451676402,16.10610883,165.72,165.68,15.7008367]
[1730451676613,16.10610883,165.73,165.68,21.7365367]
[1730451677995,16.10610883,165.73,165.68,37.84264553]
[1730451678190,16.10610883,165.74,165.68,37.84264553]
[1730451679506,16.10610883,165.73,165.68,37.84264553]
[1730451680616,16.10610883,165.76,165.71,16.10610883]
[1730451681199,16.10610883,165.73,165.69,0.12549]
[1730451681706,16.10610883,165.73,165.7,6.035]
[1730451681908,16.10610883,165.74,165.7,6.035]
[1730451682225,16.10610883,165.73,165.7,6.035]
[1730451682923,16.10610883,165.73,165.69,6.0353]
[1730451683106,16.10610883,165.77,165.71,16.10610883]
[1730451683518,16.10610883,165.77,165.72,16.10610883]
[1730451684199,16.10610883,165.78,165.72,37.22580883]
[1730451684401,16.10610883,165.79,165.74,16.10610883]
[1730451684612,16.10610883,165.79,165.73,16.10610883]
[1730451684814,16.10610883,165.79,165.74,16.10610883]
[1730451685026,16.10610883,165.78,165.73,16.10610883]
[1730451685527,16.10610883,165.79,165.73,16.10610883]
[1730451685820,22.13780883,165.79,165.73,16.10610883]
[1730451686024,16.10610883,165.77,165.73,6.0338]
[1730451686406,16.10610883,165.76,165.72,15.0856]
[1730451687006,16.10610883,165.76,165.72,21.1198]
[1730451687204,16.10610883,165.77,165.72,37.22590883]
[1730451688422,10.30457415,165.77,165.72,25.39017415]
[1730451689635,10.30457415,165.77,165.72,15.0856]
[1730451689818,10.30457415,165.76,165.72,15.0856]
[1730451690326,10.30457415,165.74,165.69,21.1234]
[1730451690533,10.30457415,165.76,165.7,10.30457415]
[1730451690714,10.30457415,165.75,165.7,10.30457415]
[1730451690906,10.30457415,165.76,165.7,10.30457415]
[1730451691523,10.30457415,165.76,165.71,6.0346]
[1730451691830,10.30457415,165.75,165.71,6.0346]
[1730451692437,10.30457415,165.75,165.7,6.035]
[1730451692638,10.30457415,165.74,165.69,21.1237]
[1730451692816,10.30457415,165.72,165.69,15.0884]
[1730451693637,10.30457415,165.73,165.69,15.0884]
[1730451693926,10.30457415,165.71,165.68,0.6115367]
[1730451699118,10.30457415,165.72,165.68,0.6115367]